bitfinex/quotes_BTCUSD_20220731
["timestamp","ask_amount","ask_price","bid_price","bid_amount"]
[1659307909442,0.35,23307.0,23306.0,0.16521872]
[1659307909669,1.13270716,23307.0,23306.0,0.16521872]
[1659307909887,1.08270716,23307.0,23306.0,0.16521872]
[1659307910112,1.12397083,23307.0,23306.0,0.16521872]
[1659307910356,0.304001,23307.0,23306.0,0.16521872]
[1659307910589,0.50756244,23315.0,23306.0,0.16521872]
[1659307910818,0.73270716,23314.0,23306.0,0.21768171]
[1659307911072,0.42870616,23311.0,23307.0,0.05]
[1659307911314,0.304001,23310.0,23306.0,0.16521872]
[1659307911557,0.42870616,23311.0,23306.0,0.20856584]
[1659307911780,0.42877338,23311.0,23308.0,0.04715751]
[1659307911998,0.42877338,23311.0,23307.0,0.09260779]
[1659307912258,0.42870616,23310.0,23308.0,0.05]
[1659307912509,0.42870616,23310.0,23306.0,0.16521872]
[1659307912510,0.1,23309.0,23306.0,0.16521872]
[1659307912723,0.73270716,23308.0,23306.0,0.16521872]
[1659307912969,0.73270716,23307.0,23306.0,0.16521872]
[1659307913432,0.73270716,23307.0,23301.0,0.23708073]
[1659307913650,0.04126367,23308.0,23299.0,0.3]
[1659307913651,0.42870616,23306.0,23299.0,0.3]
[1659307913881,0.42870616,23306.0,23299.0,0.05084418]
[1659307914094,0.42870616,23306.0,23299.0,0.04456681]
[1659307914996,0.05,23308.0,23300.0,0.47071315]
[1659307915000,0.42870616,23307.0,23300.0,0.47071315]
[1659307915003,0.42870616,23307.0,23300.0,0.57794815]
[1659307915224,0.42870616,23307.0,23301.0,0.04679091]
[1659307915456,0.42870616,23307.0,23302.0,0.04232046]
[1659307915683,6.72e-05,23313.0,23307.0,0.05]
[1659307915928,0.771,23319.0,23312.0,0.1836]
[1659307916172,0.6499,23323.0,23312.0,0.2336]
[1659307916173,0.73270716,23318.0,23312.0,0.2336]
[1659307916402,0.42870616,23317.0,23312.0,0.29338786]
[1659307916637,6.722e-05,23314.0,23312.0,0.27721956]
[1659307916867,6.722e-05,23314.0,23313.0,7.998e-05]
[1659307917345,0.42897498,23317.0,23312.0,0.27721956]
[1659307917588,0.42897498,23317.0,23314.0,0.04808038]
[1659307917589,0.304001,23316.0,23314.0,0.04808038]
[1659307917825,0.304001,23315.0,23314.0,0.04816035]
[1659307918055,0.304001,23315.0,23314.0,0.09816035]
[1659307918295,0.46996983,23315.0,23314.0,0.05]
[1659307918515,0.77397083,23315.0,23312.0,0.05]
[1659307918736,0.73270716,23314.0,23312.0,0.05]
[1659307918960,0.42870616,23314.0,23312.0,0.05]
[1659307919176,1.0975,23323.0,23313.0,0.04287998]
[1659307919391,0.42870616,23320.0,23315.0,0.05]
[1659307919613,0.00021356,23318.0,23315.0,0.05]
[1659307919858,0.42870616,23317.0,23315.0,0.05]
[1659307920075,0.304001,23316.0,23315.0,0.05]
[1659307920320,0.42870616,23317.0,23315.0,0.05]
[1659307920546,0.304001,23316.0,23315.0,0.05]
[1659307920767,0.05,23316.0,23315.0,0.05]
[1659307920992,0.304001,23316.0,23315.0,0.05]
[1659307921250,0.46996983,23317.0,23315.0,0.05]
[1659307921477,0.304001,23316.0,23315.0,0.05]
[1659307921704,0.73270716,23316.0,23315.0,0.05]
[1659307922165,0.73270716,23316.0,23312.0,0.23244041]
[1659307922385,0.73270716,23316.0,23313.0,7.998e-05]
[1659307922386,0.42870616,23316.0,23313.0,7.998e-05]
[1659307922711,0.42870616,23316.0,23312.0,0.05]
[1659307922941,0.42870616,23316.0,23312.0,0.09347227]
[1659307922942,0.41370616,23316.0,23312.0,0.09347227]
[1659307923430,0.41370616,23316.0,23313.0,7.998e-05]
[1659307923869,0.04133089,23315.0,23313.0,7.998e-05]
[1659307924118,0.45,23314.0,23313.0,7.998e-05]
[1659307924354,6.722e-05,23315.0,23313.0,7.998e-05]
[1659307924817,0.41370616,23316.0,23313.0,7.998e-05]
[1659307925047,0.4,23314.0,23313.0,7.998e-05]
[1659307925499,0.41370616,23316.0,23313.0,0.04287998]
[1659307925947,0.05,23315.0,23313.0,7.998e-05]
[1659307926161,0.05,23315.0,23313.0,0.10726998]
[1659307926440,0.41370616,23316.0,23313.0,0.21445198]
[1659307926660,0.001,23321.0,23313.0,0.51445198]
[1659307926883,0.00021292,23319.0,23313.0,0.51445198]
[1659307927104,0.42870616,23318.0,23313.0,0.10726998]
[1659307927550,0.42870616,23318.0,23313.0,0.40726998]
[1659307927852,0.42870616,23318.0,23313.0,0.10726998]
[1659307928331,0.47870616,23318.0,23313.0,0.10726998]
[1659307928573,0.42870616,23317.0,23313.0,0.10726998]
[1659307929678,0.42870616,23317.0,23313.0,0.09226998]
[1659307929892,0.42870616,23317.0,23313.0,0.39226998]
[1659307930119,6.722e-05,23316.0,23313.0,0.39226998]
[1659307930339,6.722e-05,23316.0,23313.0,0.09226998]
[1659307931030,0.46996983,23315.0,23310.0,0.04062359]
[1659307931245,0.46996983,23315.0,23309.0,0.62349843]
[1659307931246,0.42870616,23314.0,23309.0,0.62349843]
[1659307931489,0.42870616,23314.0,23310.0,0.09511103]
[1659307931737,0.42870616,23314.0,23311.0,0.05]
[1659307931969,0.04126367,23313.0,23307.0,0.107203]
[1659307932202,0.05,23307.0,23302.0,0.1]
[1659307932429,0.05,23307.0,23294.0,0.0909]
[1659307932430,1.82870616,23306.0,23294.0,0.0909]
[1659307932664,0.1,23303.0,23295.0,0.04868205]
[1659307932894,0.1,23303.0,23291.0,0.247727]
[1659307932895,0.42870616,23301.0,23291.0,0.001]
[1659307933122,0.42870616,23301.0,23292.0,0.42870616]
[1659307933350,0.42870616,23301.0,23292.0,0.47050831]
[1659307933590,0.42870616,23301.0,23292.0,0.48315179]
[1659307933827,0.42870616,23301.0,23294.0,0.04817698]
[1659307934164,0.47870616,23301.0,23294.0,0.04817698]
[1659307934392,0.73268416,23300.0,23295.0,0.01264348]
[1659307934622,0.42870616,23302.0,23296.0,0.05]
[1659307935078,0.42870616,23302.0,23297.0,0.01264348]
[1659307935305,0.42870616,23302.0,23297.0,0.05643155]
[1659307935306,0.05,23301.0,23297.0,0.05643155]
[1659307935570,0.42870616,23300.0,23298.0,0.00015223]
[1659307935805,0.303978,23299.0,23297.0,0.06264348]
[1659307936032,0.42870616,23299.0,23297.0,0.06264348]
[1659307936490,0.42870616,23299.0,23297.0,0.06279571]
[1659307936722,0.42870616,23304.0,23297.0,0.06264348]
[1659307936949,0.42870616,23304.0,23299.0,0.107238]
[1659307937181,0.079,23305.0,23300.0,0.52972664]
[1659307937396,0.079,23305.0,23303.0,0.0971905]
[1659307937626,1.2331,23311.0,23303.0,0.0971905]
[1659307937627,1.2331,23311.0,23304.0,0.05]
[1659307937956,0.5188,23314.0,23304.0,0.05]
[1659307937957,0.73268416,23310.0,23304.0,0.05]
[1659307938089,0.73268416,23310.0,23304.0,0.06264348]
[1659307938308,0.73268416,23309.0,23304.0,0.06264348]
[1659307938540,0.42870616,23308.0,23304.0,0.06264348]
[1659307938972,0.303978,23307.0,23304.0,0.06264348]
[1659307939193,0.05,23306.0,23304.0,0.06264348]
[1659307939440,0.42870616,23308.0,23304.0,0.06264348]
[1659307939887,0.09126367,23307.0,23304.0,0.06264348]
[1659307940095,0.05,23306.0,23304.0,0.05]
[1659307940341,0.47870616,23308.0,23304.0,0.05]
[1659307940572,0.303978,23307.0,23304.0,0.05]
[1659307940789,0.47870616,23308.0,23303.0,0.0971905]
[1659307941010,0.47870616,23308.0,23303.0,0.3971905]
[1659307941656,0.47870616,23308.0,23304.0,0.04610361]
[1659307941874,0.47870616,23308.0,23303.0,0.1079977]
[1659307942105,0.47870616,23308.0,23304.0,0.05844884]
[1659307942334,0.303978,23307.0,23304.0,0.05844884]
[1659307942555,0.47870616,23308.0,23304.0,0.05844884]
[1659307942804,0.08,23313.0,23305.0,0.16159959]
[1659307942805,0.303978,23307.0,23305.0,0.16159959]
[1659307943075,0.08,23313.0,23307.0,0.05]
[1659307943322,0.08,23313.0,23311.0,0.1316]
[1659307943593,0.39126367,23312.0,23311.0,0.1316]
[1659307943837,0.39126367,23312.0,23307.0,0.100657]
[1659307943838,0.78529667,23312.0,23307.0,0.100657]
[1659307944067,0.42870616,23311.0,23308.0,0.05]
[1659307944295,0.42870616,23311.0,23307.0,0.05]
[1659307944538,0.34524167,23310.0,23307.0,0.05]
[1659307944770,0.303978,23309.0,23306.0,0.10520712]
[1659307944997,0.46996983,23310.0,23306.0,0.10520712]
[1659307945212,0.42870616,23310.0,23307.0,0.05]
[1659307945460,0.05,23309.0,23308.0,7.274e-05]
[1659307945739,0.42870616,23310.0,23306.0,0.10520712]
[1659307945968,0.93822644,23317.0,23307.0,0.05]
[1659307945969,0.49062644,23317.0,23307.0,0.05]
[1659307946200,0.49062644,23317.0,23308.0,0.107212]
[1659307946201,0.028,23314.0,23308.0,0.107212]
[1659307946433,0.73268416,23313.0,23308.0,0.20540092]
[1659307946665,0.42870616,23312.0,23309.0,0.05]
[1659307946925,0.303978,23311.0,23310.0,7.273e-05]
[1659307947388,0.303978,23311.0,23308.0,0.157212]
[1659307947626,0.42870616,23312.0,23308.0,0.21297724]
[1659307947845,0.05,23311.0,23309.0,0.05007274]
[1659307948064,0.42870616,23312.0,23309.0,0.0904779]
[1659307948262,0.42870616,23315.0,23311.0,0.05]
[1659307948506,0.42870616,23315.0,23310.0,0.20712849]
[1659307948741,0.42870616,23315.0,23311.0,0.05]
[1659307948974,0.42870616,23315.0,23312.0,7.273e-05]
[1659307949495,0.42870616,23315.0,23311.0,0.15955895]
[1659307949496,0.04126367,23314.0,23311.0,0.15955895]
[1659307949720,0.303978,23313.0,23311.0,0.15955895]
[1659307949948,0.42870616,23315.0,23312.0,7.273e-05]
[1659307950176,0.382978,23314.0,23312.0,7.273e-05]
[1659307950425,0.303978,23313.0,23312.0,7.273e-05]
[1659307950648,0.04126367,23313.0,23311.0,0.05955895]
[1659307950910,0.82394783,23313.0,23308.0,0.107212]
[1659307951132,0.82394783,23313.0,23308.0,0.14821993]
[1659307951133,0.73268416,23312.0,23308.0,0.14821993]
[1659307951388,0.42870616,23311.0,23308.0,0.14821993]
[1659307951626,0.42870616,23311.0,23308.0,0.14829267]
[1659307952088,0.42870616,23311.0,23308.0,0.19829267]
[1659307952312,0.05,23310.0,23308.0,0.19829267]
[1659307952530,0.49470616,23311.0,23308.0,0.19829267]
[1659307952987,0.05,23310.0,23308.0,0.19829267]
[1659307953346,0.49470616,23311.0,23308.0,0.19829267]
[1659307953898,0.49470616,23311.0,23309.0,0.05]
[1659307954127,0.42870616,23311.0,23309.0,0.05]
[1659307954359,0.50770616,23311.0,23308.0,0.14829267]
[1659307954605,8.63e-05,23308.0,23305.0,0.04983856]
[1659307954849,0.1,23306.0,23303.0,0.04536246]
[1659307955065,0.1,23304.0,23297.0,0.82637939]
[1659307955288,0.42870616,23303.0,23297.0,0.04878253]
[1659307955515,0.303978,23302.0,23296.0,0.62090031]
[1659307955754,0.4976863,23308.0,23296.0,0.6044424]
[1659307955755,0.42870616,23301.0,23296.0,0.6044424]
[1659307956702,0.42870616,23301.0,23296.0,0.7117044]
[1659307957432,0.42870616,23304.0,23296.0,0.7117044]
[1659307957661,0.42870616,23304.0,23297.0,0.107249]
[1659307958106,0.42870616,23304.0,23298.0,0.01264348]
[1659307958336,0.42870616,23304.0,23299.0,0.16674927]
[1659307958592,0.05,23303.0,23300.0,0.10570118]
[1659307958823,0.46996983,23303.0,23300.0,0.10570118]
[1659307959042,0.42870616,23302.0,23300.0,0.05570118]
[1659307959270,0.303978,23301.0,23300.0,0.05570118]
[1659307959519,0.73268416,23301.0,23300.0,0.05570118]
[1659307959769,0.73261146,23301.0,23300.0,0.05570118]
[1659307960023,0.73261146,23301.0,23293.0,0.87651748]
[1659307960254,0.73261146,23301.0,23291.0,0.198383]
[1659307960255,0.42870616,23300.0,23291.0,0.198383]
[1659307960475,0.42870616,23300.0,23292.0,0.04939587]
[1659307960969,0.42870616,23299.0,23292.0,0.04939587]
[1659307961196,0.42870616,23299.0,23294.0,0.00330797]
[1659307961439,0.303987,23298.0,23294.0,0.00330797]
[1659307961674,0.46996983,23297.0,23295.0,0.05969051]
[1659307961904,0.83269316,23296.0,23295.0,0.05969051]
[1659307962133,0.73269316,23296.0,23295.0,0.05969051]
[1659307962834,0.77395683,23296.0,23295.0,0.05969051]
[1659307963061,0.73269316,23296.0,23295.0,0.05969051]
[1659307964228,0.476,23304.0,23296.0,0.05358098]
[1659307964229,0.045,23301.0,23296.0,0.05358098]
[1659307964464,0.045,23301.0,23295.0,0.01264348]
[1659307964465,0.73269316,23300.0,23295.0,0.01264348]
[1659307964714,0.42870616,23299.0,23295.0,0.01264348]
[1659307964955,0.42870616,23299.0,23296.0,0.01264348]
[1659307965182,0.42870616,23299.0,23296.0,0.06119374]
[1659307965409,0.045,23301.0,23298.0,0.05]
[1659307965634,0.7548,23307.0,23298.0,0.05]
[1659307965635,0.4476,23306.0,23298.0,0.17897892]
[1659307965860,0.73269316,23305.0,23298.0,0.1916224]
[1659307966130,0.42870616,23304.0,23300.0,0.14396296]
[1659307966359,8.63e-05,23308.0,23303.0,0.1]
[1659307966360,0.42870616,23307.0,23303.0,0.1]
[1659307966598,8.63e-05,23308.0,23303.0,0.1]
[1659307966599,0.42879246,23308.0,23303.0,0.1]
[1659307966822,0.42879246,23308.0,23304.0,0.04626741]
[1659307967052,0.42879246,23308.0,23304.0,0.05891089]
[1659307967273,0.42879246,23308.0,23305.0,0.01264348]
[1659307967955,0.05,23307.0,23304.0,0.04665673]
[1659307968188,8.63e-05,23308.0,23304.0,0.04665673]
[1659307968407,0.00659051,23307.0,23304.0,0.04665673]
[1659307968720,8.63e-05,23308.0,23306.0,0.05]
[1659307968827,8.63e-05,23308.0,23306.0,0.14440769]
[1659307969061,0.42879246,23308.0,23307.0,0.05]
[1659307969307,0.42879246,23308.0,23306.0,0.09440769]
[1659307969546,0.303987,23307.0,23306.0,0.09440769]
[1659307969761,0.47879246,23308.0,23306.0,0.09440769]
[1659307969983,0.42879246,23308.0,23306.0,0.09440769]
[1659307970455,0.303987,23307.0,23306.0,0.09440769]
[1659307970679,0.42879246,23308.0,23306.0,0.09440769]
[1659307970873,0.47879246,23308.0,23306.0,0.09440769]
[1659307971137,0.47879246,23308.0,23302.0,0.564467]
[1659307971138,0.52870616,23307.0,23302.0,0.05456496]
[1659307971372,0.52870616,23307.0,23297.0,0.8249]
[1659307971373,0.1,23303.0,23297.0,0.87217932]
[1659307971610,0.42870616,23302.0,23297.0,0.87217932]
[1659307971850,0.1,23307.0,23298.0,0.42870616]
[1659307971851,0.42870616,23306.0,23298.0,0.42870616]
[1659307972299,0.42870616,23306.0,23299.0,0.05]
[1659307972577,0.42870616,23306.0,23300.0,0.04147232]
[1659307972820,0.42870616,23306.0,23299.0,0.4978492]
[1659307973054,0.42870616,23306.0,23300.0,0.04358375]
[1659307973277,0.303987,23305.0,23302.0,0.05279196]
[1659307973505,0.42870616,23305.0,23302.0,0.16002996]
[1659307973763,0.42870616,23305.0,23303.0,0.05]
[1659307974783,0.303987,23304.0,23303.0,0.10166466]
[1659307975010,0.42870616,23305.0,23303.0,0.05]
[1659307975242,0.42870616,23305.0,23302.0,0.0549589]
[1659307975461,0.303987,23304.0,23303.0,0.0946221]
[1659307975680,0.42870616,23305.0,23303.0,0.05]
[1659307975894,0.303987,23304.0,23303.0,0.1051341]
[1659307976116,0.42870616,23305.0,23303.0,0.05]
[1659307976760,0.42870616,23305.0,23301.0,0.05389613]
[1659307976761,0.303987,23304.0,23302.0,0.0545367]
[1659307977006,0.42870616,23305.0,23303.0,0.05]
[1659307977261,0.42870616,23305.0,23300.0,0.214486]
[1659307977262,0.42870616,23305.0,23304.0,0.05]
[1659307977490,0.42870616,23307.0,23306.0,0.05]
[1659307977725,0.73269316,23307.0,23306.0,0.09032791]
[1659307978187,0.42870616,23307.0,23306.0,0.09032791]
[1659307978423,0.73269316,23307.0,23306.0,0.09032791]
[1659307978652,0.73269316,23307.0,23306.0,0.04032791]
[1659307978907,0.73269316,23307.0,23306.0,0.10784513]
[1659307979811,0.73269316,23307.0,23299.0,0.214491]
[1659307980026,0.73269316,23307.0,23298.0,0.05713559]
[1659307980027,0.42870616,23306.0,23298.0,0.05713559]
[1659307980267,0.42870616,23306.0,23297.0,0.87227101]
[1659307982340,0.42870616,23306.0,23298.0,0.107255]
[1659307982558,0.42870616,23306.0,23301.0,0.04961266]
[1659307982802,0.42870616,23306.0,23302.0,0.107238]
[1659307983031,0.42870616,23306.0,23301.0,0.05]
[1659307983032,0.04126367,23305.0,23301.0,0.05]
[1659307983247,0.42870616,23304.0,23301.0,0.05]
[1659307983904,0.42870616,23307.0,23301.0,0.05]
[1659307984167,0.47870616,23307.0,23304.0,8.548e-05]
[1659307984390,0.73269316,23306.0,23304.0,8.548e-05]
[1659307984609,1.13269316,23305.0,23304.0,8.548e-05]
[1659307984836,2.455e-05,23304.0,23302.0,0.05863629]
[1659307985064,2.455e-05,23304.0,23296.0,0.72103349]
[1659307985065,0.42870616,23303.0,23296.0,0.35405149]
[1659307985336,0.42870616,23302.0,23293.0,0.7538]
[1659307985572,0.42870616,23300.0,23293.0,0.80432356]
[1659307985793,0.42870616,23300.0,23293.0,0.05052356]
[1659307986019,0.303987,23299.0,23293.0,0.05052356]
[1659307986257,0.73269316,23298.0,23293.0,0.05052356]
[1659307986485,0.42870616,23297.0,23294.0,0.00446197]
[1659307986752,0.1,23295.0,23294.0,0.00446197]
[1659307986982,0.1,23295.0,23291.0,0.001]
[1659307986983,1.63029316,23295.0,23291.0,0.001]
[1659307987223,0.52870616,23292.0,23291.0,0.001]
[1659307987450,0.83269316,23292.0,23291.0,0.001]
[1659307987679,0.91736632,23292.0,23291.0,0.001]
[1659307987953,0.92395683,23292.0,23291.0,0.001]
[1659307988182,0.52870616,23292.0,23291.0,0.001]
[1659307988422,0.30488585,23292.0,23291.0,0.001]
[1659307988649,0.30488585,23292.0,23291.0,0.0438]
[1659307988650,0.00089885,23292.0,23291.0,0.0438]
[1659307988892,0.00089885,23292.0,23291.0,0.05644348]
[1659307989143,0.00089885,23292.0,23291.0,0.05650969]
[1659307991899,0.00089885,23292.0,23291.0,0.05150969]
[1659307992116,0.00089885,23292.0,23291.0,0.35150969]
[1659307993563,0.00089885,23292.0,23291.0,0.31270969]
[1659307993789,0.00089885,23292.0,23291.0,6.621e-05]
[1659307994225,0.00089885,23292.0,23288.0,0.04468477]
[1659307994226,0.52086868,23292.0,23288.0,0.04468477]
[1659307994458,0.42870616,23291.0,23288.0,0.03204129]
[1659307994675,0.1,23289.0,23287.0,0.002]
[1659307994903,0.1,23289.0,23287.0,0.03423349]
[1659307994904,0.52870616,23289.0,23287.0,0.03423349]
[1659307995132,0.46996983,23289.0,23287.0,0.05368629]
[1659307995343,0.42870616,23288.0,23287.0,0.002]
[1659307997137,0.03553872,23289.0,23287.0,0.10057603]
[1659307997138,0.00086556,23289.0,23287.0,0.10057603]
[1659307997369,0.00086556,23289.0,23288.0,0.05]
[1659307997591,0.00086556,23289.0,23288.0,0.35]
[1659307998278,0.00086556,23289.0,23288.0,0.36264348]
[1659307999143,0.7476,23298.0,23288.0,0.36264348]
[1659307999360,0.7476,23298.0,23288.0,0.51994248]
[1659307999361,0.73269316,23297.0,23288.0,0.51994248]
[1659307999652,0.7976,23298.0,23288.0,0.51994248]
[1659307999653,1.03269316,23296.0,23288.0,0.51994248]
[1659307999866,0.73269316,23295.0,23288.0,0.41264348]
[1659308000081,0.42870616,23294.0,23288.0,0.41264348]
[1659308001239,0.47870616,23294.0,23288.0,0.1]
[1659308001915,0.47870616,23294.0,23287.0,0.002]
[1659308001916,0.47867018,23288.0,23287.0,0.002]
[1659308002363,0.47867018,23288.0,23287.0,0.05274351]
[1659308003541,0.47867018,23288.0,23287.0,0.002]
[1659308003542,0.90737634,23288.0,23287.0,0.002]
[1659308003751,0.90737634,23288.0,23286.0,0.08293554]
[1659308004956,0.90737634,23288.0,23286.0,0.13293554]
[1659308005382,0.95737634,23288.0,23286.0,0.13293554]
[1659308005573,0.95737634,23288.0,23286.0,0.08293554]
[1659308005689,0.15,23287.0,23286.0,0.08293554]
[1659308005920,0.95737634,23288.0,23286.0,0.08293554]
[1659308005921,0.90737634,23288.0,23286.0,0.08293554]
[1659308006119,0.95737634,23288.0,23286.0,0.08293554]
[1659308006332,0.90737634,23288.0,23286.0,0.08293554]
[1659308006560,0.95737634,23288.0,23286.0,0.08293554]
[1659308007005,0.05,23287.0,23286.0,0.08293554]
[1659308007250,0.05,23287.0,23286.0,0.08300237]
[1659308007477,0.95737634,23288.0,23286.0,0.08300237]
[1659308007906,0.52867018,23288.0,23286.0,0.08300237]
[1659308009852,0.47867018,23288.0,23286.0,0.08300237]
[1659308010068,0.47867018,23288.0,23286.0,0.19031237]
[1659308010292,0.47867018,23288.0,23286.0,0.49031237]
[1659308011441,0.47951737,23288.0,23286.0,0.49031237]
[1659308013439,0.2,23286.0,23281.0,0.1314]
[1659308013729,0.15,23282.0,23278.0,0.001]
[1659308014049,0.25,23286.0,23278.0,0.001]
[1659308014050,0.15,23279.0,23278.0,0.001]
[1659308015061,0.42870616,23281.0,23278.0,0.05388263]
[1659308015297,0.47870616,23281.0,23278.0,0.05388263]
[1659308015500,0.46337932,23280.0,23278.0,0.05388263]
[1659308015719,0.05,23279.0,23278.0,0.05388263]
[1659308015954,0.47870616,23280.0,23278.0,0.05388263]
[1659308016181,0.05,23280.0,23278.0,0.05388263]
[1659308016425,0.49677018,23288.0,23278.0,0.5336]
[1659308016648,0.42870616,23287.0,23280.0,0.05168686]
[1659308016881,0.52867018,23288.0,23281.0,0.46090616]
[1659308017085,0.52867018,23288.0,23282.0,0.77352832]
[1659308017318,0.52867018,23288.0,23283.0,0.35]
[1659308017552,0.47867018,23288.0,23283.0,0.39214167]
[1659308018005,0.52867018,23288.0,23283.0,0.39214167]
[1659308019128,0.47867018,23288.0,23283.0,0.39214167]
[1659308019352,0.52867018,23288.0,23283.0,0.39214167]
[1659308019565,0.00083532,23286.0,23283.0,0.39214167]
[1659308020991,0.00083532,23286.0,23284.0,0.04513448]
[1659308021669,0.52434095,23288.0,23284.0,0.04513448]
[1659308022126,0.47434095,23288.0,23286.0,0.1326]
[1659308022349,0.47434095,23288.0,23287.0,0.42883779]
[1659308022574,0.47434095,23288.0,23287.0,0.88078937]
[1659308022816,0.47434095,23288.0,23287.0,0.92578937]
[1659308024931,0.47434095,23288.0,23287.0,0.57578937]
[1659308025149,0.47434095,23288.0,23287.0,0.46836474]
[1659308025394,0.47434095,23288.0,23287.0,0.03965858]
[1659308027021,0.47434095,23288.0,23287.0,0.03465858]
[1659308027211,0.47434095,23288.0,23285.0,0.214612]
[1659308027458,0.47434095,23288.0,23285.0,0.38143922]
[1659308027684,0.47434095,23288.0,23286.0,0.35]
[1659308027904,0.47434095,23288.0,23286.0,0.4076771]
[1659308029076,0.47434095,23288.0,23286.0,0.5149851]
[1659308029940,0.47434095,23288.0,23286.0,0.4295911]
[1659308030178,0.47434095,23288.0,23287.0,0.3]
[1659308030483,0.47434095,23288.0,23287.0,0.39381426]
[1659308033655,0.51567145,23288.0,23287.0,0.04381426]
[1659308033882,0.47434095,23288.0,23287.0,0.04381426]
[1659308035566,0.47434095,23288.0,23287.0,1.5490639]
[1659308035567,0.3828428,23288.0,23287.0,1.5490639]
[1659308035784,0.3511428,23288.0,23287.0,1.8990639]
[1659308036007,0.3511428,23288.0,23287.0,1.9729639]
[1659308037388,0.7818,23302.0,23287.0,1.9729639]
[1659308037389,0.4818,23302.0,23291.0,0.05]
[1659308037624,2.455e-05,23304.0,23296.0,0.14675132]
[1659308037852,2.455e-05,23304.0,23301.0,0.1341]
[1659308037853,0.42870616,23303.0,23301.0,0.1341]
[1659308038106,0.05002455,23304.0,23301.0,0.1841]
[1659308038330,0.05002455,23304.0,23303.0,0.1341]
[1659308038331,2.455e-05,23304.0,23303.0,0.1341]
[1659308038570,2.455e-05,23304.0,23303.0,0.2341]
[1659308038809,2.455e-05,23304.0,23303.0,0.59682271]
[1659308039269,2.455e-05,23304.0,23303.0,0.58417923]
[1659308039538,2.455e-05,23304.0,23303.0,0.18417923]
[1659308039764,2.455e-05,23304.0,23300.0,0.05]
[1659308039765,2.455e-05,23304.0,23300.0,0.1341]
[1659308040003,2.455e-05,23304.0,23299.0,0.39770501]
[1659308040227,0.47873071,23304.0,23297.0,1.38418354]
[1659308040470,0.42873071,23304.0,23298.0,0.05386833]
[1659308041644,0.42873071,23304.0,23299.0,0.05]
[1659308042840,0.47873071,23304.0,23299.0,0.05]
[1659308043073,0.42873071,23304.0,23299.0,0.05]
[1659308043353,0.47873071,23304.0,23299.0,0.05]
[1659308043548,0.47955189,23304.0,23298.0,0.05386833]
[1659308043824,0.47955189,23304.0,23293.0,0.7802]
[1659308043825,0.47870616,23303.0,23293.0,0.7802]
[1659308044020,0.92870616,23302.0,23291.0,0.05683044]
[1659308044168,0.92870616,23302.0,23291.0,0.47262755]
[1659308044169,0.303987,23300.0,23291.0,0.47262755]
[1659308044369,0.72870616,23299.0,23291.0,0.47262755]
[1659308044575,0.42870616,23298.0,23291.0,0.47262755]
[1659308045205,0.42870616,23298.0,23292.0,0.15849473]
[1659308045676,0.42870616,23298.0,23293.0,0.53597816]
[1659308045677,0.05,23298.0,23293.0,0.53597816]
[1659308045892,0.05,23298.0,23294.0,0.56280616]
[1659308046094,0.02072118,23303.0,23295.0,0.75047516]
[1659308046297,0.43152734,23303.0,23296.0,0.42870616]
[1659308046518,0.303987,23302.0,23297.0,0.3]
[1659308046733,0.43152734,23303.0,23297.0,0.35886591]
[1659308046967,0.303987,23302.0,23297.0,0.35886591]
[1659308047213,0.43152734,23303.0,23297.0,0.35886591]
[1659308047445,0.303987,23302.0,23297.0,0.35886591]
[1659308047636,0.42952734,23303.0,23297.0,0.35886591]
[1659308047846,0.303987,23302.0,23297.0,0.35886591]
[1659308048062,0.42952734,23303.0,23298.0,0.157255]
[1659308048306,0.47952734,23303.0,23298.0,0.157255]
[1659308048537,0.303987,23302.0,23298.0,0.107255]
[1659308048764,0.0413305,23301.0,23298.0,0.107255]
[1659308049208,0.47952734,23303.0,23298.0,0.107255]
[1659308049448,0.05,23301.0,23298.0,0.107255]
[1659308049758,0.03467316,23301.0,23298.0,0.457255]
[1659308050000,0.00088297,23302.0,23298.0,0.457255]
[1659308050455,0.00088297,23302.0,23298.0,0.35]
[1659308050694,0.303987,23301.0,23298.0,0.05]
[1659308050945,0.00088297,23302.0,23298.0,0.04847791]
[1659308051162,0.00088297,23302.0,23299.0,0.05]
[1659308051393,0.00088297,23302.0,23299.0,0.107249]
[1659308051625,0.00088297,23302.0,23299.0,0.457249]
[1659308052538,0.00088297,23302.0,23300.0,0.00013156]
[1659308053496,0.00088297,23302.0,23299.0,0.107249]
[1659308053497,0.47091963,23302.0,23299.0,0.107249]
[1659308053689,0.47003666,23302.0,23297.0,0.13954219]
[1659308053894,0.52003666,23302.0,23297.0,0.13954219]
[1659308054548,0.47870616,23302.0,23297.0,0.13954219]
[1659308055212,0.47870616,23302.0,23297.0,0.43954219]
[1659308055447,0.47870616,23302.0,23297.0,0.13954219]
[1659308055679,0.47870616,23302.0,23297.0,0.43954219]
[1659308056180,0.47870616,23302.0,23297.0,0.48954219]
[1659308056612,0.303987,23301.0,23297.0,0.48954219]
[1659308056829,0.2,23299.0,23298.0,0.107258]
[1659308057064,0.2,23299.0,23296.0,0.321783]
[1659308057363,0.2,23299.0,23295.0,0.05918709]
[1659308057577,0.25,23299.0,23295.0,0.83789325]
[1659308058033,0.42962309,23302.0,23296.0,0.858034]
[1659308058263,0.42962309,23302.0,23297.0,0.407256]
[1659308058717,0.42962309,23302.0,23298.0,0.107258]
[1659308058993,0.47962309,23302.0,23298.0,0.107258]
[1659308059224,0.3,23299.0,23298.0,0.107258]
[1659308059447,0.77870616,23299.0,23293.0,0.81573797]
[1659308059666,0.77870616,23299.0,23292.0,0.05530568]
[1659308059900,0.77870616,23299.0,23292.0,0.48243709]
[1659308060135,0.77870616,23299.0,23292.0,0.42870616]
[1659308060349,0.42870616,23298.0,23292.0,0.04162822]
[1659308060571,0.42870616,23298.0,23291.0,0.42870616]
[1659308060818,0.42870616,23298.0,23293.0,0.536351]
[1659308061037,0.47870616,23298.0,23293.0,0.536351]
[1659308061525,0.05,23296.0,23293.0,0.586351]
[1659308061748,0.47958913,23298.0,23296.0,0.00010971]
[1659308062180,0.47958913,23298.0,23296.0,0.10737671]
[1659308062648,0.47958913,23298.0,23296.0,0.40737671]
[1659308062908,0.00088297,23298.0,23296.0,0.40737671]
[1659308063356,0.00088297,23298.0,23296.0,0.45737671]
[1659308063790,0.00088297,23298.0,23296.0,0.59147671]
[1659308064954,0.00088297,23298.0,23296.0,0.59912019]
[1659308065609,2.455e-05,23304.0,23296.0,0.59912019]
[1659308065833,0.42870616,23303.0,23298.0,0.157258]
[1659308066052,0.303987,23302.0,23298.0,0.157258]